[Event "Chinese League Div-A Rapid 2022"]
[Site "Fuling,Chongqing"]
[Date "2022.09.14"]
[Round "7.2"]
[White "Zhang, Zhong"]
[Black "Zhang, Di"]
[Result "1/2-1/2"]
[ECO "D40"]
[WhiteElo "2617"]
[BlackElo "2108"]
[Annotator "TA"]
[PlyCount "175"]
[EventDate "2022.09.07"]
[EventType "team-tourn"]
[EventCountry "CHN"]
[SourceTitle "playchess.com"]
[Source "ChessBase"]
[SourceQuality "1"]
[TimeControl "1500+10"]

{[%evp 20,175,25,-10,16,24,41,46,51,51,50,40,52,20,19,23,21,22,32,25,35,40,29,0,0,-13,0,0,0,-27,-13,-29,-15,-38,0,0,-7,-14,-20,-42,-22,-35,-37,-45,-43,-46,-50,-49,-39,-89,-89,-85,-85,-89,-85,-91,-92,-93,-99,-118,-124,-121,-121,-133,-107,-116,-112,-146,0,-92,-89,-96,-91,-138,-84,-72,-19,-104,-100,-122,-119,-145,-143,-141,-103,-136,-142,-135,-103,-103,-103,-103,-103,-103,-103,-103,0,-103,0,-103,-103,-103,-103,-103,-103,-126,-103,-103,-103,-103,-103,-103,-103,-103,-103,-103,0,-103,-103,-229,-213,-245,-200,-191,-196,-194,-168,-176,-133,-190,-206,-179,0,-135,-133,-133,-133,-133,-133,-133,-126,-130,-133,-133,0,-134,-123,-134,-134,-134,-84,-84,0,0,0,0,0,0]} 1. e4 {[%emt 0:00:03]} c5 {[%emt 0:00:02]} 2. Nf3 {[%emt 0:00:02]} e6 {[%emt 0:00:07]} 3. c3 {[%emt 0:00:02]} d5 {[%emt 0:01:17]} 4. exd5 {[%emt 0:00:01]} Qxd5 {[%emt 0:00:02]} 5. d4 {[%emt 0:00:02]} Nc6 {[%emt 0:00:16]} 6. Be2 {[%emt 0:00:17]} cxd4 {[%emt 0:00:43]} 7. cxd4 {[%emt 0:00:03]} Nf6 {[%emt 0:00:02]} 8. O-O {[%emt 0:00:07]} Be7 {[%emt 0:00:07]} 9. Nc3 {[%emt 0:00:02]} Qd8 {[%emt 0:00:10]} 10. a3 {[%emt 0:00:21]} O-O {[%emt 0:00:25]} 11. Bc4 {[%emt 0:00:12]} Re8 {[%emt 0:06:07] D40: Queen's Gambit Declined: Semi-Tarrasch with 5 e3.} 12. Re1 {[%emt 0:00:13]} h6 {[%emt 0:03:04]} 13. Bf4 {[%emt 0:01:54] [#]} Bf8 $146 {[%emt 0:02:06] White is slightly better.} ({Predecessor:} 13... a6 14. Qd3 b5 15. Bb3 Na5 16. Bc2 Bb7 17. Ne5 Rf8 18. Ng4 Re8 19. Rxe6 Qd7 20. Nxf6+ {1-0 (19) Seymour,T (2043)-See,T (1928) Nottingham 2018}) 14. Rc1 {[%emt 0:02:34]} Ne7 {[%emt 0:00:33]} 15. Ba2 {[%emt 0:01:08][%cal Bc4a2,Ba2b1,Bb1e4][%mdl 32]} Ned5 {[%emt 0:00:26]} 16. Bg3 {[%emt 0:00:21]} b6 {[%emt 0:03:06]} 17. Nxd5 {[%emt 0:01:49]} Nxd5 {[%emt 0:00:35]} 18. Ne5 {[%emt 0:00:42]} Bb7 {[%emt 0:00:44]} 19. Qd3 {[%emt 0:03:34]} Qf6 {[%emt 0:00:53]} 20. Bb1 {[%emt 0:00:51][%csl Gb1][%cal Rd3h7]} g6 {[%emt 0:00:11]} 21. Qd2 {[%emt 0:05:49]} Bg7 {[%emt 0:01:25][%cal Bf8g7,Bg7h6,Bh6f4][%mdl 32]} 22. h4 {[%emt 0:00:46][%cal Oh4h5]} h5 {[%emt 0:00:23]} 23. Be4 {[%emt 0:00:54]} Rac8 {[%emt 0:00:14]} 24. Rcd1 {[%emt 0:00:08]} Red8 {[%emt 0:00:28]} 25. Qe2 {[%emt 0:00:29]} Bh6 {[%emt 0:00:24]} 26. Nf3 {[%emt 0:02:42]} Bf4 {[%emt 0:01:03]} 27. Ne5 $1 {[%emt 0:00:34]} Rc7 {[%emt 0:00:31]} 28. Qf3 {[%emt 0:00:21] Hoping for Bxf4.} Bxg3 {[%emt 0:00:20]} 29. Qxg3 {[%emt 0:00:27][%cal Re5g6] Nxg6! is the strong threat.} Qf4 {[%emt 0:00:23]} 30. Qxf4 {[%emt 0:01:25]} (30. Qg5 {feels hotter.} Rdc8 31. f3 Kf8 32. g3) 30... Nxf4 {[%emt 0:00:01]} 31. Bxb7 {[%emt 0:00:01]} Rxb7 {[%emt 0:00:01]} 32. g3 {[%emt 0:00:01]} Nd5 {[%emt 0:00:08]} 33. Rc1 {[%emt 0:00:01]} Ne7 {[%emt 0:00:15]} 34. Rc4 {[%emt 0:00:27]} (34. Red1 $15) 34... b5 $1 $17 {[%emt 0:00:24]} 35. Rc5 {[%emt 0:00:03]} Rxd4 {[%emt 0:00:04]} 36. Rec1 {[%emt 0:00:00]} Nd5 {[%emt 0:00:48] Against Rc7} 37. R1c2 {[%emt 0:00:32]} Kg7 {[%emt 0:00:13]} 38. Kg2 {[%emt 0:00:03]} b4 {[%emt 0:00:44]} 39. Nc6 {[%emt 0:00:05] [#]} bxa3 $1 {[%emt 0:00:35]} 40. bxa3 {[%emt 0:00:19]} ({Much weaker is} 40. Nxd4 axb2 41. Rxb2 Rxb2 $19) 40... Ra4 {[%emt 0:00:33]} 41. Na5 {[%emt 0:00:09]} Rd7 {[%emt 0:00:21]} 42. Nc4 {[%emt 0:00:01]} Kf6 {[%emt 0:00:01]} 43. Rb2 {[%emt 0:00:25]} Ne7 {[%emt 0:00:18]} ({Black should play} 43... Rc7 $17 44. Rxc7 Nxc7) 44. Rb3 {[%emt 0:00:51]} (44. Ne5 $1 $11 Rd5 45. Rc7) 44... Nf5 {[%emt 0:00:16]} 45. Rb4 {[%emt 0:01:10]} Ra6 {[%emt 0:00:39]} 46. a4 {[%emt 0:00:08]} (46. Rb8 $142) 46... Nd6 {[%emt 0:00:24]} (46... Rd4 $142 47. Kh2 Nd6) 47. Ne5 {[%emt 0:00:12] [#]} Rb7 {[%emt 0:00:19]} (47... Re7 $1 $17) 48. Rf4+ {[%emt 0:00:15]} (48. Rxb7 $1 $11 {keeps the balance.} Nxb7 49. Nd7+ Kg7 50. Rc7) 48... Nf5 {[%emt 0:00:07]} 49. a5 {[%emt 0:00:16] [#]} Rd6 $1 {[%emt 0:00:01]} 50. Nc4 {[%emt 0:00:04]} Rdd7 {[%emt 0:00:14]} 51. Ne3 {[%emt 0:00:21]} Rdc7 {[%emt 0:00:16]} 52. Rxc7 {[%emt 0:00:05]} Rxc7 {[%emt 0:00:00]} 53. Nxf5 {[%emt 0:00:04]} gxf5 {[%emt 0:00:02][%mdl 4096] Endgame KR-KR} 54. a6 {[%emt 0:00:12]} Rc6 {[%emt 0:00:13]} 55. Ra4 {[%emt 0:00:01]} Ke7 {[%emt 0:00:09]} 56. Kf3 {[%emt 0:00:09]} Rc3+ {[%emt 0:00:07]} 57. Ke2 {[%emt 0:00:20]} Rc6 {[%emt 0:00:10]} 58. Kf3 $1 {[%emt 0:00:05]} Kf6 {[%emt 0:00:14]} (58... Rd6 $17 59. Kf4 f6) 59. Ra5 {[%emt 0:00:04]} (59. Kg2 $1 $11 {was the only way to keep the balance.}) 59... Rc4 {[%emt 0:00:09]} 60. Ke3 {[%emt 0:00:13]} Rc3+ {[%emt 0:00:15]} 61. Ke2 {[%emt 0:00:03]} Rb3 {[%emt 0:00:01]} 62. Rc5 {[%emt 0:00:25]} Rb6 {[%emt 0:00:07]} 63. Ra5 {[%emt 0:00:09]} e5 {[%emt 0:00:04]} 64. Ke3 {[%emt 0:00:06]} Ke6 {[%emt 0:00:02]} 65. Kd3 {[%emt 0:00:02]} Rb2 {[%emt 0:00:35]} 66. Ke3 {[%emt 0:00:04]} Kd6 {[%emt 0:00:04]} 67. Ra3 {[%emt 0:00:08]} Ke6 {[%emt 0:00:25]} 68. Ra5 {[%emt 0:00:10]} Rb4 {[%emt 0:00:04]} 69. Ra3 {[%emt 0:00:08]} (69. Rc5 $17) 69... f4+ $19 {[%emt 0:00:12]} 70. Kf3 {[%emt 0:00:10]} fxg3 {[%emt 0:00:18]} 71. Kxg3 {[%emt 0:00:06]} Kf5 {[%emt 0:00:13]} 72. f3 {[%emt 0:00:05]} f6 {[%emt 0:00:04]} 73. Ra5 {[%emt 0:00:16]} Rb3 {[%emt 0:00:05]} 74. Ra4 {[%emt 0:00:03]} (74. Kf2 $17) 74... Rd3 {[%emt 0:00:05]} 75. Ra5 {[%emt 0:00:02]} Rb3 {[%emt 0:00:17]} 76. Ra4 $1 {[%emt 0:00:01]} Rb1 {[%emt 0:00:03]} 77. Rc4 {[%emt 0:00:28]} Rb6 {[%emt 0:00:18]} 78. Ra4 {[%emt 0:00:10]} Ke6 {[%emt 0:00:01]} 79. Ra5 {[%emt 0:00:05]} f5 {[%emt 0:00:20]} 80. Ra3 {[%emt 0:00:10]} Kf6 {[%emt 0:00:12]} 81. Ra5 {[%emt 0:00:05]} Ke6 {[%emt 0:00:18]} (81... Rd6 $17 82. Ra2 Ke6) 82. Ra2 {[%emt 0:00:06]} (82. Ra3 $1 $11) 82... Rb3 {[%emt 0:00:05] aiming for ...e4.} 83. Kf2 {[%emt 0:00:07]} Rb4 {[%emt 0:00:15]} 84. Rc2 {[%emt 0:00:07]} Rxh4 {[%emt 0:00:27]} (84... Rb6 $142 85. Ra2 Rc6) 85. Rc7 $17 {[%emt 0:00:04]} Rh2+ {[%emt 0:00:10]} (85... Kf6 $17 {And now ...Ra4 would win.} 86. Rxa7 Ra4) 86. Kg3 $11 {[%emt 0:00:20] The position is equal.} Ra2 {[%emt 0:00:02]} 87. Rxa7 {[%emt 0:00:01]} Ra3 {[%emt 0:00:12]} 88. Ra8 {[%emt 0:00:18] Weighted Error Value: White=0.18 (very precise) /Black=0.14 (very precise)} 1/2-1/2

[Event "Chinese League Div-A Rapid 2022"]
[Site "Fuling,Chongqing"]
[Date "2022.09.14"]
[Round "7.3"]
[White "Xu, Yi"]
[Black "Li, Haoyu"]
[Result "1/2-1/2"]
[ECO "C42"]
[WhiteElo "2507"]
[BlackElo "2369"]
[Annotator "RC"]
[PlyCount "39"]
[EventDate "2022.09.07"]
[EventType "team-tourn"]
[EventCountry "CHN"]
[SourceTitle "playchess.com"]
[Source "ChessBase"]
[SourceQuality "1"]
[TimeControl "1500+10"]

1. e4 {[%emt 0:00:02]} e5 {[%emt 0:00:03]} 2. Nf3 {[%emt 0:00:02]} Nf6 {[%emt 0:00:03]} 3. Nxe5 {[%emt 0:00:15]} Nxe4 {[%emt 0:00:06]} 4. Qe2 {[%emt 0:00:15]} Qe7 {[%emt 0:00:03]} 5. Qxe4 {[%emt 0:00:03]} d6 {[%emt 0:00:02]} 6. d4 {[%emt 0:00:10]} dxe5 {[%emt 0:00:07]} 7. dxe5 {[%emt 0:00:03]} Nc6 {[%emt 0:00:06]} 8. Nc3 {[%emt 0:01:46]} Qxe5 {[%emt 0:00:21]} 9. Qxe5+ {[%emt 0:00:13]} Nxe5 {[%emt 0:00:02]} 10. Bf4 {[%emt 0:00:10]} Bd6 {[%emt 0:03:43]} 11. Bg3 {[%emt 0:00:04]} f6 {[%emt 0:04:09]} 12. O-O-O {[%emt 0:03:01]} Bd7 {[%emt 0:00:47]} 13. Nb5 {[%emt 0:00:35]} Bxb5 {[%emt 0:00:26]} 14. Bxb5+ {[%emt 0:00:02]} Kf7 {[%emt 0:00:39]} 15. Rhe1 {[%emt 0:01:38]} Rhd8 {[%emt 0:02:19]} 16. f3 {[%emt 0:01:03]} g5 {[%emt 0:01:10]} 17. Kb1 {[%emt 0:00:43]} h5 {[%emt 0:01:46]} 18. f4 {[%emt 0:07:05]} gxf4 {[%emt 0:04:08]} 19. Bxf4 {[%emt 0:00:02]} Nf3 {[%emt 0:01:03]} 20. gxf3 {[%emt 0:00:56]} 1/2-1/2

[Event "Chinese League Div-A Rapid 2022"]
[Site "Fuling,Chongqing"]
[Date "2022.09.14"]
[Round "7.4"]
[White "Wang, Yu A."]
[Black "Ju, Wenjun"]
[Result "0-1"]
[ECO "B33"]
[WhiteElo "2271"]
[BlackElo "2560"]
[Annotator "TA"]
[PlyCount "74"]
[EventDate "2022.09.07"]
[EventType "team-tourn"]
[EventCountry "CHN"]
[SourceTitle "playchess.com"]
[Source "ChessBase"]
[SourceQuality "1"]
[TimeControl "1500+10"]

{[%evp 20,74,25,7,9,6,1,12,6,4,11,18,28,14,0,0,0,0,0,-32,-56,-54,-50,-135,-131,-124,-122,-165,-162,-165,-172,-387,-368,-594,-587,-903,-431,-418,-408,-428,-427,-549,-547,-646,-641,-671,-660,-642,-631,-952,-939,-1788,-1807,-1662,-1678,-1314,-1218]} 1. e4 {[%emt 0:00:01]} c5 {[%emt 0:00:01]} 2. Nf3 {[%emt 0:00:01][%cal Bg1f3,Bf3d4,Bd4b5,Bb5a3,Ba3c2][%mdl 32]} Nc6 {[%emt 0:00:01]} 3. d4 {[%emt 0:00:01]} cxd4 {[%emt 0:00:01]} 4. Nxd4 {[%emt 0:00:01]} Nf6 {[%emt 0:00:02]} 5. Nc3 {[%emt 0:00:01]} e5 {[%emt 0:00:01]} 6. Ndb5 {[%emt 0:00:01]} d6 {[%emt 0:00:01]} 7. Bg5 {[%emt 0:00:02]} a6 {[%emt 0:00:01]} 8. Na3 {[%emt 0:00:01]} b5 {[%emt 0:00:02][%cal Bb7b5,Bb5b4][%mdl 32]} 9. Nd5 {[%emt 0:00:01]} Be7 {[%emt 0:00:01]} 10. Bxf6 {[%emt 0:00:01]} Bxf6 {[%emt 0:00:02]} 11. c4 {[%emt 0:00:01]} b4 $1 {[%emt 0:00:11] B33: Sicilian: Pelikan and Sveshnikov Variations.} 12. Nc2 {[%emt 0:00:01]} O-O $1 {[%emt 0:00:49][%mdl 4] is more profitable than 12...a5 at the moment.} 13. g3 {[%emt 0:00:32]} a5 {[%emt 0:00:36] The position is equal.} 14. Bg2 {[%emt 0:00:11]} Be6 {[%emt 0:01:24]} 15. O-O {[%emt 0:01:55]} Rc8 {[%emt 0:00:30]} 16. b3 {[%emt 0:00:18]} Bxd5 {[%emt 0:04:48]} 17. Qxd5 {[%emt 0:04:35]} Nd4 {[%emt 0:00:38]} 18. Nxd4 {[%emt 0:00:44]} exd4 {[%emt 0:00:03][%cal Be5d4,Bd4d3,Bd3d2][%mdl 32] [#]} 19. a3 $146 {[%emt 0:00:38]} ({Predecessor:} 19. Qh5 g6 20. Qd1 Bg7 21. Qd3 Qd7 22. h4 Rc5 23. Rae1 a4 24. f4 Ra5 25. Kh2 {½-½ (36) Predojevic,B (2569)-Wang,Y (2626) Lausanne 2006}) 19... Rc5 {[%emt 0:01:12]} 20. Qb7 {[%emt 0:00:01]} d3 $36 {[%emt 0:00:47][%mdl 2048] Black is pushing.} 21. Ra2 {[%emt 0:06:34] [#] White is now going downhill.} (21. axb4 $15 Rc7 22. Qd5 Bxa1 23. Rxa1) 21... Bc3 $1 $17 {[%emt 0:01:41]} 22. axb4 {[%emt 0:00:01]} Bxb4 {[%emt 0:00:02]} 23. f4 {[%emt 0:01:04]} d2 {[%emt 0:00:28][%cal Od6d5]} 24. Bf3 {[%emt 0:04:07]} Qf6 {[%emt 0:00:52]} 25. e5 $2 {[%emt 0:01:42]} (25. Kg2) 25... dxe5 $19 {[%emt 0:00:04]} 26. Bd5 $2 {[%emt 0:00:01]} (26. Qe4 {is a better defense.}) 26... e4 {[%emt 0:02:28] [#] And now ...Qd4+ would win.} 27. Raa1 {[%emt 0:01:49]} e3 {[%emt 0:00:02]} (27... Qd4+ $142 28. Kg2 e3) 28. Bf3 {[%emt 0:00:01]} Qc3 {[%emt 0:00:33]} 29. Be2 {[%emt 0:01:08] Against Qd3} Qxb3 {[%emt 0:00:34] Black is clearly winning.} 30. f5 {[%emt 0:00:02]} Qc3 {[%emt 0:00:22][%cal Oc5f5] ...Rxf5! is the strong threat.} 31. f6 {[%emt 0:00:19]} g6 {[%emt 0:00:24] Hoping for ...Rf5.} 32. Qd7 {[%emt 0:00:54]} Rfc8 {[%emt 0:02:35]} 33. Rad1 {[%emt 0:03:25]} Rxc4 {[%emt 0:01:13][%cal Oc3e5] Threatens to win with ...Qe5!} 34. Bf3 {[%emt 0:00:22]} R4c7 {[%emt 0:00:14]} 35. Qh3 {[%emt 0:00:11]} e2 {[%emt 0:01:07]} 36. Bxe2 {[%emt 0:00:01]} Qe3+ {[%emt 0:00:01]} 37. Rf2 {[%emt 0:00:04]} Bc5 {[%emt 0:00:08][%csl LRe2,LRf2] Weighted Error Value: White=0.79/Black=0.16 (very precise)} 0-1

[Event "Chinese League Div-A Rapid 2022"]
[Site "Fuling,Chongqing"]
[Date "2022.09.14"]
[Round "7.5"]
[White "Li, Ruofan"]
[Black "Ning, Kaiyu"]
[Result "0-1"]
[ECO "D35"]
[WhiteElo "2302"]
[BlackElo "2374"]
[Annotator "RC"]
[PlyCount "154"]
[EventDate "2022.09.07"]
[EventType "team-tourn"]
[EventCountry "CHN"]
[SourceTitle "playchess.com"]
[Source "ChessBase"]
[SourceQuality "1"]
[TimeControl "1500+10"]

1. d4 {[%emt 0:00:02]} Nf6 {[%emt 0:00:02]} 2. c4 {[%emt 0:00:02]} e6 {[%emt 0:00:02]} 3. Nf3 {[%emt 0:00:02]} d5 {[%emt 0:00:10]} 4. cxd5 {[%emt 0:00:02]} exd5 {[%emt 0:00:04]} 5. Nc3 {[%emt 0:00:02]} c6 {[%emt 0:00:11]} 6. Bf4 {[%emt 0:00:02]} Bd6 {[%emt 0:00:29]} 7. Bxd6 {[%emt 0:00:03]} Qxd6 {[%emt 0:00:03]} 8. Qc2 {[%emt 0:00:03]} g6 {[%emt 0:01:52]} 9. e3 {[%emt 0:00:20]} Bf5 {[%emt 0:00:03]} 10. Bd3 {[%emt 0:00:01]} Bxd3 {[%emt 0:00:02]} 11. Qxd3 {[%emt 0:00:02]} Nbd7 {[%emt 0:00:19]} 12. O-O {[%emt 0:00:04]} O-O {[%emt 0:00:03]} 13. Rab1 {[%emt 0:00:13]} Rfe8 {[%emt 0:00:26]} 14. Qc2 {[%emt 0:01:48]} a5 {[%emt 0:00:23]} 15. a3 {[%emt 0:00:01]} Kg7 {[%emt 0:01:53]} 16. Rfc1 {[%emt 0:01:15]} Rec8 {[%emt 0:02:58]} 17. Nd2 {[%emt 0:01:44]} Ng4 {[%emt 0:02:12]} 18. g3 {[%emt 0:00:21]} f5 {[%emt 0:00:34]} 19. b4 {[%emt 0:01:48]} axb4 {[%emt 0:02:26]} 20. axb4 {[%emt 0:00:02]} Ndf6 {[%emt 0:00:19]} 21. Nf1 {[%emt 0:00:49]} h5 {[%emt 0:02:20]} 22. f3 {[%emt 0:02:38]} Nh6 {[%emt 0:00:03]} 23. Na4 {[%emt 0:00:10]} Qd8 {[%emt 0:00:33]} 24. Nc5 {[%emt 0:00:17]} Qe7 {[%emt 0:00:20]} 25. b5 {[%emt 0:00:23]} b6 {[%emt 0:03:17]} 26. Nd3 {[%emt 0:00:09]} cxb5 {[%emt 0:00:30]} 27. Qxc8 {[%emt 0:00:39]} Rxc8 {[%emt 0:00:01]} 28. Rxc8 {[%emt 0:00:01]} Nf7 {[%emt 0:00:02]} 29. Rbc1 {[%emt 0:00:38]} Ne8 {[%emt 0:01:03]} 30. Nf4 {[%emt 0:00:52]} Ng5 {[%emt 0:03:12]} 31. Kf2 {[%emt 0:02:58]} h4 {[%emt 0:01:44]} 32. R1c6 {[%emt 0:02:25]} Kh7 {[%emt 0:01:27]} 33. gxh4 {[%emt 0:03:41]} Nf7 {[%emt 0:00:49]} 34. Nxg6 {[%emt 0:00:34]} Qb7 {[%emt 0:00:32]} 35. Nf8+ {[%emt 0:00:34]} Kg8 {[%emt 0:00:01]} 36. Ne6 {[%emt 0:00:01]} Nfd6 {[%emt 0:00:06]} 37. Nd8 {[%emt 0:03:04]} Qe7 {[%emt 0:00:30]} 38. Ra8 {[%emt 0:00:56]} f4 {[%emt 0:00:06]} 39. Rxb6 {[%emt 0:00:41]} Qxh4+ {[%emt 0:00:15]} 40. Ke2 {[%emt 0:00:02]} fxe3 {[%emt 0:00:06]} 41. Nxe3 {[%emt 0:00:28]} Qxd4 {[%emt 0:00:03]} 42. Rc6 {[%emt 0:01:14]} Kh7 {[%emt 0:00:04]} 43. Nb7 {[%emt 0:00:18]} Qb2+ {[%emt 0:00:29]} 44. Rc2 {[%emt 0:00:05]} Qe5 {[%emt 0:00:04]} 45. Nxd6 {[%emt 0:00:18]} Nxd6 {[%emt 0:00:03]} 46. Rc7+ {[%emt 0:00:08]} Kg6 {[%emt 0:00:07]} 47. Rg8+ {[%emt 0:00:09]} Kf6 {[%emt 0:00:11]} 48. Kd3 {[%emt 0:00:30]} Qa1 {[%emt 0:00:02]} 49. Ng4+ {[%emt 0:00:15]} Kf5 {[%emt 0:00:18]} 50. Rf8+ {[%emt 0:00:09]} Kg5 {[%emt 0:00:06]} 51. Rg8+ {[%emt 0:00:16]} Kf4 {[%emt 0:00:13]} 52. Rf8+ {[%emt 0:00:07]} Nf5 {[%emt 0:00:11]} 53. Rcf7 {[%emt 0:00:21]} Qd1+ {[%emt 0:00:20]} 54. Kc3 {[%emt 0:00:02]} Qxf3+ {[%emt 0:00:03]} 55. Kb4 {[%emt 0:00:08]} Qxg4 {[%emt 0:00:24]} 56. Kxb5 {[%emt 0:00:04]} d4 {[%emt 0:00:08]} 57. Kc4 {[%emt 0:00:16]} Qe2+ {[%emt 0:00:04]} 58. Kb3 {[%emt 0:00:13]} Qd3+ {[%emt 0:00:08]} 59. Kb2 {[%emt 0:00:02]} Qb5+ {[%emt 0:00:11]} 60. Kc2 {[%emt 0:00:06]} d3+ {[%emt 0:00:09]} 61. Kc3 {[%emt 0:00:21]} Ke3 {[%emt 0:00:11]} 62. Rxf5 {[%emt 0:00:10]} Qc6+ {[%emt 0:00:02]} 63. Kb2 {[%emt 0:00:16]} d2 {[%emt 0:00:06]} 64. Re5+ {[%emt 0:00:10]} Kd4 {[%emt 0:00:17]} 65. Rd8+ {[%emt 0:00:14]} Kxe5 {[%emt 0:00:03]} 66. Rxd2 {[%emt 0:00:01]} Ke4 {[%emt 0:00:09]} 67. Rc2 {[%emt 0:00:14]} Qb5+ {[%emt 0:00:02]} 68. Kc3 {[%emt 0:00:05]} Ke3 {[%emt 0:00:05]} 69. h3 {[%emt 0:00:12]} Qd3+ {[%emt 0:00:25]} 70. Kb2 {[%emt 0:00:01]} Kd4 {[%emt 0:00:02]} 71. h4 {[%emt 0:00:12]} Qb5+ {[%emt 0:00:07]} 72. Kc1 {[%emt 0:00:14]} Kd3 {[%emt 0:00:05]} 73. Rd2+ {[%emt 0:00:02]} Ke3 {[%emt 0:00:02]} 74. Rc2 {[%emt 0:00:07]} Qb4 {[%emt 0:00:26]} 75. h5 {[%emt 0:00:14]} Kd3 {[%emt 0:00:02]} 76. Rc6 {[%emt 0:00:26]} Qe1+ {[%emt 0:00:28]} 77. Kb2 {[%emt 0:00:03]} Qe5+ {[%emt 0:00:02]} 0-1

[Event "Chinese League Div-A Rapid 2022"]
[Site "Fuling,Chongqing"]
[Date "2022.09.14"]
[Round "7.6"]
[White "Xue, Haowen"]
[Black "Wang, Hao B"]
[Result "1-0"]
[ECO "D38"]
[WhiteElo "2128"]
[BlackElo "2165"]
[Annotator "NA RC"]
[PlyCount "77"]
[EventDate "2022.09.07"]
[EventType "team-tourn"]
[EventCountry "CHN"]
[SourceTitle "playchess.com"]
[Source "ChessBase"]
[SourceQuality "1"]
[TimeControl "1500+10"]

1. d4 {[%emt 0:00:03]} d5 {[%emt 0:00:05]} 2. c4 {[%emt 0:00:01]} e6 {[%emt 0:00:04]} 3. Nf3 {[%emt 0:00:04]} Nf6 {[%emt 0:00:03]} 4. Nc3 {[%emt 0:00:19]} c6 {[%emt 0:00:04]} 5. Bg5 {[%emt 0:00:11]} Nbd7 {[%emt 0:00:18]} 6. e3 {[%emt 0:00:03]} Bb4 {[%emt 0:00:03]} 7. cxd5 {[%emt 0:00:45]} exd5 {[%emt 0:00:10]} 8. Nd2 {[%emt 0:00:04]} O-O {[%emt 0:00:26]} 9. Bd3 {[%emt 0:00:17]} h6 {[%emt 0:00:14]} 10. Bh4 {[%emt 0:00:12]} Re8 {[%emt 0:01:36]} 11. O-O {[%emt 0:02:02]} Qc7 {[%emt 0:00:35]} 12. Qc2 {[%emt 0:01:41]} Bd6 {[%emt 0:00:41]} 13. Nf3 {[%emt 0:00:14]} Ng4 {[%emt 0:01:04]} 14. Kh1 {[%emt 0:05:07]} Qb8 {[%emt 0:12:17]} 15. Rae1 {[%emt 0:04:05]} Ngf6 {[%emt 0:00:48]} 16. e4 {[%emt 0:02:12]} dxe4 {[%emt 0:02:30]} 17. Nxe4 {[%emt 0:00:03]} Nxe4 {[%emt 0:00:01]} 18. Bxe4 {[%emt 0:00:02]} Nb6 {[%emt 0:01:11]} 19. Bh7+ {[%emt 0:01:30]} Kf8 {[%emt 0:00:01]} 20. Rxe8+ {[%emt 0:00:04]} Kxe8 {[%emt 0:00:00]} 21. Re1+ {[%emt 0:05:25]} Kf8 {[%emt 0:00:03]} 22. Ne5 {[%emt 0:00:23]} Be6 {[%emt 0:00:53]} 23. Ng6+ {[%emt 0:00:46]} Ke8 {[%emt 0:00:04]} 24. Qf5 {[%emt 0:00:35]} Kd7 {[%emt 0:02:12]} 25. Rxe6 {[%emt 0:01:03]} fxe6 {[%emt 0:00:01]} 26. Qf7+ {[%emt 0:01:19]} Kc8 {[%emt 0:00:02]} 27. Qxe6+ {[%emt 0:00:28]} Kc7 {[%emt 0:00:03]} 28. Qf7+ {[%emt 0:00:28]} Nd7 {[%emt 0:00:12]} 29. Qxg7 {[%emt 0:00:16]} Qe8 {[%emt 0:00:36]} 30. Ne5 {[%emt 0:00:01]} Rd8 {[%emt 0:00:03]} 31. Bxd8+ {[%emt 0:00:06]} Kxd8 {[%emt 0:00:07]} 32. f4 {[%emt 0:00:20]} Bxe5 {[%emt 0:00:08]} 33. dxe5 {[%emt 0:00:08]} Qe6 {[%emt 0:00:04]} 34. h3 {[%emt 0:00:17]} Kc7 {[%emt 0:00:03]} 35. Bg8 {[%emt 0:00:08]} Qf5 {[%emt 0:00:18]} 36. e6 {[%emt 0:00:06]} Qxf4 {[%emt 0:00:01]} 37. Qxd7+ {[%emt 0:00:01]} Kb6 {[%emt 0:00:01]} 38. Qd8+ {[%emt 0:00:05]} Ka6 {[%emt 0:00:01]} 39. Qd3+ {[%emt 0:00:02]} 1-0

[Event "Chinese League Div-A Rapid 2022"]
[Site "Fuling,Chongqing"]
[Date "2022.09.14"]
[Round "7.7"]
[White "Xu, Yinglun"]
[Black "Ma, Zhonghan"]
[Result "1/2-1/2"]
[ECO "D12"]
[WhiteElo "2549"]
[BlackElo "2485"]
[Annotator "TA"]
[PlyCount "32"]
[EventDate "2022.09.07"]
[EventType "team-tourn"]
[EventCountry "CHN"]
[SourceTitle "playchess.com"]
[Source "ChessBase"]
[SourceQuality "1"]
[TimeControl "1500+10"]

{[%evp 11,32,27,30,8,21,19,30,9,32,23,31,15,15,15,23,24,25,20,20,15,22,1,41]} 1. c4 {[%emt 0:00:03]} c6 {[%emt 0:00:04]} 2. d4 {[%emt 0:00:16]} d5 {[%emt 0:00:02]} 3. Nf3 {[%emt 0:00:03]} Nf6 {[%emt 0:00:07]} 4. e3 {[%emt 0:00:02]} Bf5 {[%emt 0:00:08]} 5. Nc3 {[%emt 0:00:03]} e6 {[%emt 0:00:16]} 6. Nh4 {[%emt 0:00:02]} Bg6 {[%emt 0:00:36]} 7. Be2 {[%emt 0:00:10] D12: Slav Defence: 3 Nf3 Nf6 4 e3 Bf5.} Nbd7 {[%emt 0:00:04]} 8. O-O {[%emt 0:00:04]} Bd6 {[%emt 0:00:41]} 9. g3 {[%emt 0:00:09] White has an edge.} O-O {[%emt 0:00:51]} 10. Nxg6 {[%emt 0:00:35]} hxg6 {[%emt 0:00:02]} 11. Qc2 {[%emt 0:00:02]} dxc4 {[%emt 0:00:48]} 12. Bxc4 {[%emt 0:00:23]} c5 {[%emt 0:00:10] [#]} 13. Rd1 $1 $146 {[%emt 0:01:48][%mdl 8] A relevant novelty.} ({Predecessor:} 13. dxc5 Nxc5 14. Rd1 Qe7 15. Bd2 a6 16. Rac1 Rac8 17. Be1 b5 18. Bf1 Nce4 19. Qb1 Nxc3 20. Bxc3 {½-½ (43) Fedoseev,V (2672)-Artemiev,V (2650) Kocaeli 2014}) 13... cxd4 {[%emt 0:00:14]} 14. exd4 {[%emt 0:00:05]} Rc8 {[%emt 0:00:11] The position is equal.} 15. Bf1 {[%emt 0:00:05]} a6 {[%emt 0:02:37]} 16. a4 {[%emt 0:01:21]} Nd5 {[%emt 0:05:17] Not much happened in this game.  Weighted Error Value: White=0.10 (very precise) /Black=0.04 (flawless)} 1/2-1/2